fUST/lending_fUST_20250826
["ID","MTS","AMOUNT","RATE_DAILY","PERIOD"]
[381402011,1756187045442,-600.0,0.00040768,30]
[381402012,1756187045485,-500.0,0.00040803,30]
[381402013,1756187045528,-1400.0,0.00040819,30]
[381402014,1756187045571,-151.0,0.00040821,30]
[381402015,1756187045614,-500.0,0.0004087,30]
[381402016,1756187045819,-500.0,0.00040924,30]
[381402017,1756187045862,-151.0,0.00040995,30]
[381402018,1756187045905,-151.0,0.00040995,30]
[381402019,1756187045947,-151.0,0.00040995,30]
[381402020,1756187045992,-151.0,0.00040995,30]
[381402021,1756187046036,-151.0,0.00040995,30]
[381402022,1756187046078,-212.94064106,0.00040995,120]
[381402023,1756187046120,-151.0,0.00041,30]
[381402024,1756187046162,-151.0,0.00041,30]
[381402025,1756187046204,-152.444789,0.00041,30]
[381402026,1756187046245,-151.0,0.00041,30]
[381402027,1756187046286,-151.0,0.00041,30]
[381402028,1756187046334,-154.057557,0.00041,30]
[381402029,1756187046382,-151.0,0.00041,30]
[381402030,1756187046423,-211.277413,0.00041,30]
[381402031,1756187046463,-151.0,0.00041,30]
[381402032,1756187046504,-151.0,0.00041,30]
[381402033,1756187046544,-151.0,0.00041,30]
[381402034,1756187046585,-151.0,0.00041,30]
[381402035,1756187046626,-151.0,0.00041,30]
[381402036,1756187046666,-151.0,0.00041,30]
[381402037,1756187046707,-151.0,0.00041,30]
[381402038,1756187046749,-151.0,0.00041,30]
[381402039,1756187046790,-1400.0,0.00041052,30]
[381402040,1756187046832,-599.23066018,0.00041095,61]
[381402041,1756187046873,-151.0,0.00041095,30]
[381402042,1756187046914,-480.0,0.00041095,30]
[381402043,1756187046954,-480.0,0.00041095,30]
[381402044,1756187046993,-480.0,0.00041095,30]
[381402045,1756187047033,-480.0,0.00041095,30]
[381402046,1756187047073,-480.0,0.00041095,30]
[381402047,1756187047112,-480.35943131,0.00041095,30]
[381402048,1756187047153,-566.6,0.00041095,30]
[381402049,1756187047193,-480.0,0.00041095,30]
[381402050,1756187047233,-480.0,0.00041095,30]
[381402051,1756187047272,-1850.7,0.00041095,30]
[381402052,1756187047312,-480.0,0.00041095,30]
[381402053,1756187047351,-480.0,0.00041095,30]
[381402054,1756187047389,-480.0,0.00041095,30]
[381402055,1756187047430,-480.0,0.00041095,30]
[381402056,1756187047470,-543.17,0.00041095,30]
[381402057,1756187047513,-480.0,0.00041095,30]
[381402058,1756187047555,-621.17,0.00041095,30]
[381402059,1756187047595,-480.0,0.00041095,30]
[381402060,1756187047637,-480.0,0.00041095,30]
[381402061,1756187047678,-480.0,0.00041095,30]
[381402062,1756187047718,-480.0,0.00041095,30]
[381402063,1756187047757,-480.0,0.00041095,30]
[381402064,1756187047797,-793.42,0.00041095,30]
[381402065,1756187047836,-642.04,0.00041095,30]
[381402066,1756187047877,-250.97,0.00041095,30]
[381402067,1756187047917,-480.0,0.00041095,30]
[381402068,1756187047958,-481.58930038,0.00041095,30]
[381402069,1756187048001,-480.0,0.00041095,30]
[381402070,1756187048044,-481.1773647,0.00041095,30]
[381402071,1756187048086,-480.0,0.00041095,30]
[381402072,1756187048127,-480.0,0.00041095,30]
[381402073,1756187048169,-480.0,0.00041095,30]
[381402074,1756187048210,-480.0,0.00041095,30]
[381402075,1756187048251,-691.48,0.00041095,30]
[381402076,1756187048291,-480.0,0.00041095,30]
[381402077,1756187048331,-2114.57,0.00041095,30]
[381402078,1756187048372,-480.96569102,0.00041095,30]
[381402079,1756187048413,-480.0,0.00041095,30]
[381402080,1756187048454,-888.53,0.00041095,30]
[381402081,1756187048495,-480.0,0.00041095,30]
[381402082,1756187048536,-517.16,0.00041095,30]
[381402083,1756187048578,-480.0,0.00041095,30]
[381402084,1756187048619,-480.0,0.00041095,30]
[381402085,1756187048661,-619.71,0.00041095,30]
[381402086,1756187048702,-598.31,0.00041095,30]
[381402087,1756187048742,-480.0,0.00041095,30]
[381402088,1756187048782,-480.0,0.00041095,30]
[381402089,1756187048824,-757.05,0.00041095,30]
[381402090,1756187048864,-480.0,0.00041095,30]
[381402091,1756187048904,-480.0,0.00041095,30]
[381402092,1756187048944,-480.0,0.00041095,30]
[381402093,1756187048987,-480.0,0.00041095,30]
[381402094,1756187049028,-493.06,0.00041095,30]
[381402095,1756187049070,-869.5,0.00041095,30]
[381402096,1756187049112,-480.0,0.00041095,30]
[381402097,1756187049157,-480.0,0.00041095,30]
[381402098,1756187049199,-480.0,0.00041095,30]
[381402099,1756187049240,-480.0,0.00041095,30]
[381402100,1756187049283,-480.0,0.00041095,30]
[381402101,1756187049326,-2697.29,0.00041095,30]
[381402102,1756187049367,-554.1,0.00041095,30]
[381402103,1756187049409,-579.77,0.00041095,30]
[381402104,1756187049449,-724.32,0.00041095,30]
[381402105,1756187049488,-480.0,0.00041095,30]
[381402106,1756187049525,-745.65,0.00041095,30]
[381402107,1756187049564,-480.0,0.00041095,30]
[381402108,1756187049604,-1063.96,0.00041095,30]
[381402109,1756187049642,-480.0,0.00041095,30]
[381402110,1756187049680,-480.0,0.00041095,30]
[381402111,1756187049719,-481.97,0.00041095,30]
[381402112,1756187049758,-480.0,0.00041095,30]
[381402113,1756187049797,-480.0,0.00041095,30]
[381402114,1756187049851,-480.0,0.00041095,30]
[381402115,1756187049895,-480.48454718,0.00041095,30]
[381402116,1756187049938,-480.0,0.00041095,30]
[381402117,1756187049984,-480.0,0.00041095,30]
[381402118,1756187050028,-480.0,0.00041095,30]
[381402119,1756187050071,-480.0,0.00041095,30]
[381402120,1756187050301,-827.93,0.00041095,30]
[381402121,1756187050376,-854.06,0.00041095,30]
[381402122,1756187050420,-862.18,0.00041095,30]
[381402123,1756187050463,-1357.56,0.00041095,30]
[381402124,1756187050505,-480.0,0.00041095,30]
[381402125,1756187050547,-481.0298068,0.00041095,30]
[381402126,1756187050590,-480.0,0.00041095,30]
[381402127,1756187050633,-500.0,0.00041095,30]
[381402128,1756187050676,-578.6824796,0.00041095,30]
[381402129,1756187050719,-480.0,0.00041095,30]
[381402130,1756187050760,-1433.81,0.00041095,30]
[381402131,1756187050802,-480.0,0.00041095,30]
[381402132,1756187050844,-480.0,0.00041095,30]
[381402133,1756187050889,-480.0,0.00041095,30]
[381402134,1756187050931,-480.0,0.00041095,30]
[381402135,1756187050973,-480.0,0.00041095,30]
[381402136,1756187051015,-480.0,0.00041095,30]
[381402137,1756187051058,-480.0,0.00041095,30]
[381402138,1756187051099,-480.0,0.00041095,30]
[381402139,1756187051141,-480.0,0.00041095,30]
[381402140,1756187051183,-1000.0,0.00041095,30]
[381402141,1756187051222,-609.81,0.00041095,30]
[381402142,1756187051263,-1096.74,0.00041095,30]
[381402143,1756187051304,-359.40965329,0.00041095,30]
[381402144,1756187051344,-304.11952601,0.00041095,30]
[381402145,1756187051386,-480.0,0.00041095,30]
[381402146,1756187051427,-480.95006938,0.00041095,30]
[381402147,1756187051471,-480.0,0.00041095,30]
[381402148,1756187051512,-480.0,0.00041095,30]
[381402149,1756187051557,-480.0,0.00041095,30]
[381402150,1756187051596,-480.0,0.00041095,30]
[381402151,1756187051636,-773.09,0.00041095,30]
[381402152,1756187051674,-1867.32,0.00041095,30]
[381402153,1756187051711,-480.0,0.00041095,30]
[381402154,1756187051749,-480.0,0.00041095,30]
[381402155,1756187051791,-480.0,0.00041095,30]
[381402156,1756187051832,-480.0,0.00041095,30]
[381402157,1756187051872,-480.0,0.00041095,30]
[381402158,1756187051912,-485.58,0.00041095,30]
[381402159,1756187051952,-712.91,0.00041095,30]
[381402160,1756187051992,-480.0,0.00041095,30]
[381402161,1756187052033,-480.0,0.00041095,30]
[381402162,1756187052075,-480.97138187,0.00041095,30]
[381402163,1756187052116,-969.38,0.00041095,30]
[381402164,1756187052158,-480.0,0.00041095,30]
[381402165,1756187052198,-968.3,0.00041095,30]
[381402166,1756187052238,-480.84154875,0.00041095,30]
[381402167,1756187052277,-480.0,0.00041095,30]
[381402168,1756187052321,-151.0,0.00041095,30]
[381402169,1756187052366,-151.0,0.00041095,30]
[381402170,1756187052409,-480.0,0.00041095,30]
[381402171,1756187052451,-151.0,0.00041095,30]
[381402172,1756187052493,-151.0,0.00041095,30]
[381402173,1756187052532,-480.0,0.00041095,30]
[381402174,1756187052570,-151.0,0.00041095,30]
[381402175,1756187052609,-260.558131,0.00041095,30]
[381402176,1756187052648,-514.53,0.00041095,30]
[381402177,1756187052688,-480.0,0.00041095,30]
[381402178,1756187052729,-755.81,0.00041095,30]
[381402179,1756187052771,-480.0,0.00041095,30]
[381402180,1756187052812,-1561.44,0.00041095,30]
[381402181,1756187052853,-483.42,0.00041095,30]
[381402182,1756187052895,-824.68,0.00041095,30]
[381402183,1756187052937,-480.0,0.00041095,30]
[381402184,1756187052977,-984.9,0.00041095,30]
[381402185,1756187053018,-480.0,0.00041095,30]
[381402186,1756187053058,-151.0,0.00041095,30]
[381402187,1756187053099,-480.0,0.00041095,30]
[381402188,1756187053140,-151.0,0.00041095,30]
[381402189,1756187053180,-151.0,0.00041095,30]
[381402190,1756187053220,-1037.06,0.00041095,30]
[381402191,1756187053260,-271.903658,0.00041095,30]
[381402192,1756187053301,-480.0,0.00041095,30]
[381402193,1756187053343,-480.94516744,0.00041095,30]
[381402194,1756187053384,-812.98,0.00041095,30]
[381402195,1756187053425,-1131.78,0.00041095,30]
[381402196,1756187053467,-480.0,0.00041095,30]
[381402197,1756187053517,-480.0,0.00041095,30]
[381402198,1756187053558,-946.95,0.00041095,30]
[381402199,1756187053599,-480.0,0.00041095,30]
[381402200,1756187053640,-1093.47,0.00041095,30]
[381402201,1756187053680,-543.73355207,0.00041095,30]
[381402202,1756187053719,-1059.5,0.00041095,30]
[381402203,1756187053759,-480.0,0.00041095,30]
[381402204,1756187053799,-778.35,0.00041095,30]
[381402205,1756187053840,-480.71283287,0.00041095,30]
[381402206,1756187053882,-480.0,0.00041095,30]
[381402207,1756187053922,-480.0,0.00041095,30]
[381402208,1756187053961,-480.0,0.00041095,30]
[381402209,1756187054000,-480.0,0.00041095,30]
[381402210,1756187054040,-480.0,0.00041095,30]
[381402211,1756187054080,-480.67387012,0.00041095,30]
[381402212,1756187054118,-481.09798056,0.00041095,30]
[381402213,1756187054158,-766.08,0.00041095,30]
[381402214,1756187054200,-613.26,0.00041095,30]
[381402215,1756187054242,-480.0,0.00041095,30]
[381402216,1756187054282,-546.58,0.00041095,30]
[381402217,1756187054320,-480.0,0.00041095,30]
[381402218,1756187054360,-784.32,0.00041095,30]
[381402219,1756187054400,-480.0,0.00041095,30]
[381402220,1756187054446,-480.0,0.00041095,30]
[381402221,1756187054488,-606.08,0.00041095,30]
[381402222,1756187054528,-480.0,0.00041095,30]
[381402223,1756187054567,-1119.8,0.00041095,30]
[381402224,1756187054607,-699.17,0.00041095,30]
[381402225,1756187054816,-547.32,0.00041095,30]
[381402226,1756187054858,-248.95576416,0.00041095,30]
[381402227,1756187054900,-864.9,0.00041095,30]
[381402228,1756187054940,-480.0,0.00041095,30]
[381402229,1756187054982,-2132.91,0.00041095,30]
[381402230,1756187055022,-480.0,0.00041095,30]
[381402231,1756187055063,-583.23,0.00041095,30]
[381402232,1756187055104,-480.67145735,0.00041095,30]
[381402233,1756187055147,-480.0,0.00041095,30]
[381402234,1756187055187,-480.0,0.00041095,30]
[381402235,1756187055228,-548.22,0.00041095,30]
[381402236,1756187055270,-480.0,0.00041095,30]
[381402237,1756187055311,-1219.3,0.00041095,30]
[381402238,1756187055350,-480.7514205,0.00041095,30]
[381402239,1756187055391,-480.0,0.00041095,30]
[381402240,1756187055435,-318.6874213,0.00041095,30]
[381402241,1756187055478,-480.0,0.00041095,30]
[381402242,1756187055520,-1408.59,0.00041095,30]
[381402243,1756187055566,-1216.02,0.00041095,30]
[381402244,1756187055611,-151.0,0.00041095,30]
[381402245,1756187055656,-151.0,0.00041095,30]
[381402246,1756187055701,-151.0,0.00041095,30]
[381402247,1756187055743,-928.19,0.00041095,30]
[381402248,1756187055784,-480.0,0.00041095,30]
[381402249,1756187055829,-1392.95,0.00041095,30]
[381402250,1756187055872,-480.0,0.00041095,30]
[381402251,1756187055914,-480.0,0.00041095,30]
[381402252,1756187055955,-513.73386838,0.00041095,30]
[381402253,1756187055998,-480.0,0.00041095,30]
[381402254,1756187056039,-3500.76,0.00041095,30]
[381402255,1756187056081,-480.0,0.00041095,30]
[381402256,1756187056125,-3378.02,0.00041095,30]
[381402257,1756187056168,-235.78488301,0.00041095,30]
[381402258,1756187056212,-480.0,0.00041095,30]
[381402259,1756187056254,-480.0,0.00041095,30]
[381402260,1756187056297,-480.0,0.00041095,30]
[381402261,1756187056340,-480.0,0.00041095,30]
[381402262,1756187056383,-480.0,0.00041095,30]
[381402263,1756187056429,-480.0,0.00041095,30]
[381402264,1756187056473,-480.0,0.00041095,30]
[381402265,1756187056521,-480.76678933,0.00041095,30]
[381402266,1756187056560,-480.0,0.00041095,30]
[381402267,1756187056600,-480.0,0.00041095,30]
[381402268,1756187056643,-699.47,0.00041095,30]
[381402269,1756187056685,-1570.07,0.00041095,30]
[381402270,1756187056724,-1403.21,0.00041095,30]
[381402271,1756187056766,-480.0,0.00041095,30]
[381402272,1756187056807,-480.0,0.00041095,30]
[381402273,1756187056847,-558.48,0.00041095,30]
[381402274,1756187056887,-480.29935723,0.00041095,30]
[381402275,1756187056927,-151.0,0.00041095,30]
[381402276,1756187056967,-151.0,0.00041095,30]
[381402277,1756187057007,-151.0,0.00041095,30]
[381402278,1756187057046,-480.0,0.00041095,30]
[381402279,1756187057087,-480.0,0.00041095,30]
[381402280,1756187057127,-480.0,0.00041095,30]
[381402281,1756187057167,-911.97,0.00041095,30]
[381402282,1756187057210,-480.0,0.00041095,30]
[381402283,1756187057250,-480.0,0.00041095,30]
[381402284,1756187057294,-480.0,0.00041095,30]
[381402285,1756187057335,-480.51946757,0.00041095,30]
[381402286,1756187057378,-480.0,0.00041095,30]
[381402287,1756187057420,-480.0,0.00041095,30]
[381402288,1756187057461,-480.0,0.00041095,30]
[381402289,1756187057504,-480.0,0.00041095,30]
[381402290,1756187057545,-481.15264365,0.00041095,30]
[381402291,1756187057584,-480.0,0.00041095,30]
[381402292,1756187057622,-480.87870355,0.00041095,30]
[381402293,1756187057659,-480.0,0.00041095,30]
[381402294,1756187057697,-480.0,0.00041095,30]
[381402295,1756187057734,-702.58,0.00041095,30]
[381402296,1756187057774,-490.35,0.00041095,30]
[381402297,1756187057816,-500.0,0.00041095,30]
[381402298,1756187057860,-480.0,0.00041095,30]
[381402299,1756187057902,-500.0,0.00041095,30]
[381402300,1756187057941,-500.0,0.00041095,30]
[381402301,1756187057982,-500.0,0.00041095,30]
[381402302,1756187058022,-500.0,0.00041095,30]
[381402303,1756187058062,-500.0,0.00041095,30]
[381402304,1756187058102,-500.0,0.00041095,30]
[381402305,1756187058144,-500.0,0.00041095,30]
[381402306,1756187058184,-500.0,0.00041095,30]
[381402307,1756187058225,-500.0,0.00041095,30]
[381402308,1756187058266,-500.0,0.00041095,30]
[381402309,1756187058306,-480.0,0.00041095,30]
[381402310,1756187058347,-500.0,0.00041095,30]
[381402311,1756187058390,-457.7551414,0.00041095,30]
[381402312,1756187058436,-595.29,0.00041095,30]
[381402313,1756187058476,-480.0,0.00041095,30]
[381402314,1756187058519,-480.0,0.00041095,30]
[381402315,1756187058559,-480.0,0.00041095,30]
[381402316,1756187058599,-2930.53,0.00041095,30]
[381402317,1756187058639,-516.7,0.00041095,30]
[381402318,1756187058678,-480.0,0.00041095,30]
[381402319,1756187058716,-480.0,0.00041095,30]
[381402320,1756187058758,-1847.68,0.00041095,30]
[381402321,1756187058799,-2174.66,0.00041095,30]
[381402322,1756187058838,-480.0,0.00041095,30]
[381402323,1756187058880,-480.0,0.00041095,30]
[381402324,1756187058919,-480.0,0.00041095,30]
[381402325,1756187058964,-480.0,0.00041095,30]
[381402326,1756187059006,-1125.4,0.00041095,30]
[381402327,1756187059047,-684.32,0.00041095,30]
[381402328,1756187059090,-480.0,0.00041095,30]
[381402329,1756187059301,-480.0,0.00041095,30]
[381402330,1756187059342,-480.0,0.00041095,30]
[381402331,1756187059385,-3328.1,0.00041095,30]
[381402332,1756187059426,-480.0,0.00041095,30]
[381402333,1756187059466,-481.10395834,0.00041095,30]
[381402334,1756187059506,-611.68,0.00041095,30]
[381402335,1756187059545,-480.43118172,0.00041095,30]
[381402336,1756187059586,-1077.84,0.00041095,30]
[381402337,1756187059626,-480.0,0.00041095,30]
[381402338,1756187059666,-480.0,0.00041095,30]
[381402339,1756187059706,-1930.7,0.00041095,30]
[381402340,1756187059746,-480.0,0.00041095,30]
[381402341,1756187059786,-480.0,0.00041095,30]
[381402342,1756187059826,-856.78,0.00041095,30]
[381402343,1756187059866,-480.77673134,0.00041095,30]
[381402344,1756187059905,-480.0,0.00041095,30]
[381402345,1756187059947,-480.0,0.00041095,30]
[381402346,1756187059988,-480.87553525,0.00041095,30]
[381402347,1756187060028,-1062.37,0.00041095,30]
[381402348,1756187060069,-480.0,0.00041095,30]
[381402349,1756187060110,-480.0,0.00041095,30]
[381402350,1756187060151,-480.54855749,0.00041095,30]
[381402351,1756187060193,-480.0,0.00041095,30]
[381402352,1756187060236,-1103.57,0.00041095,30]
[381402353,1756187060277,-480.0,0.00041095,30]
[381402354,1756187060321,-1931.9,0.00041095,30]
[381402355,1756187060364,-480.0,0.00041095,30]
[381402356,1756187060409,-480.0,0.00041095,30]
[381402357,1756187060452,-699.1,0.00041095,30]
[381402358,1756187060493,-480.0,0.00041095,30]
[381402359,1756187060535,-2699.24,0.00041095,30]
[381402360,1756187060576,-480.65673343,0.00041095,30]
[381402361,1756187060617,-480.0,0.00041095,30]
[381402362,1756187060657,-480.0,0.00041095,30]
[381402363,1756187060698,-490.69721217,0.00041095,30]
[381402364,1756187060740,-480.0,0.00041095,30]
[381402365,1756187060784,-480.0,0.00041095,30]
[381402366,1756187060829,-480.0,0.00041095,30]
[381402367,1756187060873,-726.68,0.00041095,30]
[381402368,1756187060917,-480.0,0.00041095,30]
[381402369,1756187060960,-480.0,0.00041095,30]
[381402370,1756187061006,-480.0,0.00041095,30]
[381402371,1756187061062,-480.0,0.00041095,30]
[381402372,1756187061109,-480.0,0.00041095,30]
[381402373,1756187061153,-480.0,0.00041095,30]
[381402374,1756187061194,-1181.73,0.00041095,30]
[381402375,1756187061233,-480.0,0.00041095,30]
[381402376,1756187061273,-480.0,0.00041095,30]
[381402377,1756187061314,-480.0,0.00041095,30]
[381402378,1756187061356,-480.0,0.00041095,30]
[381402379,1756187061400,-767.18,0.00041095,30]
[381402380,1756187061447,-480.0,0.00041095,30]
[381402381,1756187061486,-1468.19,0.00041095,30]
[381402382,1756187061527,-1445.59,0.00041095,30]
[381402383,1756187061567,-480.0,0.00041095,30]
[381402384,1756187061608,-1781.01,0.00041095,30]
[381402385,1756187061648,-480.0,0.00041095,30]
[381402386,1756187061689,-480.0,0.00041095,30]
[381402387,1756187061729,-1678.18,0.00041095,30]
[381402388,1756187061767,-949.84,0.00041095,30]
[381402389,1756187061808,-480.0,0.00041095,30]
[381402390,1756187061848,-1045.59,0.00041095,30]
[381402391,1756187061889,-671.34,0.00041095,30]
[381402392,1756187061929,-480.0,0.00041095,30]
[381402393,1756187061969,-480.0,0.00041095,30]
[381402394,1756187062011,-744.23,0.00041095,30]
[381402395,1756187062053,-2752.19,0.00041095,30]
[381402396,1756187062095,-480.0,0.00041095,30]
[381402397,1756187062136,-572.53,0.00041095,30]
[381402398,1756187062179,-610.92,0.00041095,30]
[381402399,1756187062220,-480.0,0.00041095,30]
[381402400,1756187062259,-546.37,0.00041095,30]
[381402401,1756187062300,-480.0,0.00041095,30]
[381402402,1756187062340,-1316.44,0.00041095,30]
[381402403,1756187062382,-151.0,0.00041095,30]
[381402404,1756187062432,-933.97,0.00041095,30]
[381402405,1756187062473,-1074.83,0.00041095,30]
[381402406,1756187062516,-480.0,0.00041095,30]
[381402407,1756187062560,-480.0,0.00041095,30]
[381402408,1756187062600,-575.82595393,0.00041095,30]
[381402409,1756187062639,-480.0,0.00041095,30]
[381402410,1756187062677,-2224.26,0.00041095,30]
[381402411,1756187062716,-1582.19,0.00041095,30]
[381402412,1756187062756,-480.0,0.00041095,30]
[381402413,1756187062795,-480.0,0.00041095,30]
[381402414,1756187062836,-480.0,0.00041095,30]
[381402415,1756187062876,-480.0,0.00041095,30]
[381402416,1756187062917,-1009.99,0.00041095,30]
[381402417,1756187062958,-480.0,0.00041095,30]
[381402418,1756187062998,-572.23,0.00041095,30]
[381402419,1756187063037,-480.0,0.00041095,30]
[381402420,1756187063078,-670.71,0.00041095,30]
[381402421,1756187063119,-629.39,0.00041095,30]
[381402422,1756187063161,-480.0,0.00041095,30]
[381402423,1756187063201,-480.67440844,0.00041095,30]
[381402424,1756187063242,-1198.08,0.00041095,30]
[381402425,1756187063284,-687.04,0.00041095,30]
[381402426,1756187063326,-482.24,0.00041095,30]
[381402427,1756187063366,-271.27146236,0.00041095,30]
[381402428,1756187063410,-480.0,0.00041095,30]
[381402429,1756187063449,-442.43672309,0.00041095,30]
[381402430,1756187063489,-480.0,0.00041095,30]
[381402431,1756187063527,-3244.81,0.00041095,30]
[381402432,1756187063570,-359.04651851,0.00041095,30]
[381402433,1756187063612,-480.0,0.00041095,30]
[381402434,1756187063821,-480.0,0.00041095,30]
[381402435,1756187063863,-480.0,0.00041095,30]
[381402436,1756187063903,-480.0,0.00041095,30]
[381402437,1756187063943,-480.0,0.00041095,30]
[381402438,1756187063983,-500.0,0.00041095,120]
[381402439,1756187064026,-480.0,0.00041095,30]
[381402440,1756187064066,-836.39,0.00041095,30]
[381402441,1756187064106,-1124.64,0.00041095,30]
[381402442,1756187064148,-480.35460623,0.00041095,30]
[381402443,1756187064187,-887.1,0.00041095,30]
[381402444,1756187064226,-480.0,0.00041095,30]
[381402445,1756187064264,-595.191698,0.00041095,30]
[381402446,1756187064305,-920.96,0.00041095,30]
[381402447,1756187064346,-480.0,0.00041095,30]
[381402448,1756187064386,-480.0,0.00041095,30]
[381402449,1756187064424,-480.0,0.00041095,30]
[381402450,1756187064462,-480.0,0.00041095,30]
[381402451,1756187064499,-732.29,0.00041095,30]
[381402452,1756187064537,-1972.6,0.00041095,30]
[381402453,1756187064575,-480.0,0.00041095,30]
[381402454,1756187064615,-482.31842462,0.00041095,30]
[381402455,1756187064655,-510.0,0.00041095,30]
[381402456,1756187064693,-633.75,0.00041095,30]
[381402457,1756187064732,-593.11,0.00041095,30]
[381402458,1756187064772,-151.0,0.00041095,30]
[381402459,1756187064816,-151.0,0.00041095,30]
[381402460,1756187064860,-151.0,0.00041095,30]
[381402461,1756187064902,-512.53,0.00041095,30]
[381402462,1756187064944,-480.0,0.00041095,30]
[381402463,1756187064985,-480.0,0.00041095,30]
[381402464,1756187065028,-486.38,0.00041095,30]
[381402465,1756187065070,-480.0,0.00041095,30]
[381402466,1756187065110,-480.0,0.00041095,30]
[381402467,1756187065152,-481.08328121,0.00041095,30]
[381402468,1756187065195,-480.0,0.00041095,30]
[381402469,1756187065236,-480.54707857,0.00041095,30]
[381402470,1756187065278,-1320.69,0.00041095,30]
[381402471,1756187065323,-480.0,0.00041095,30]
[381402472,1756187065366,-1355.42,0.00041095,30]
[381402473,1756187065410,-480.0,0.00041095,30]
[381402474,1756187065453,-237.85865842,0.00041095,30]
[381402475,1756187065496,-704.66,0.00041095,30]
[381402476,1756187065537,-480.0,0.00041095,30]
[381402477,1756187065580,-480.0,0.00041095,30]
[381402478,1756187065622,-480.0,0.00041095,30]
[381402479,1756187065665,-632.02,0.00041095,30]
[381402480,1756187065707,-452.99063687,0.00041095,30]
[381402481,1756187065750,-1308.79,0.00041095,30]
[381402482,1756187065794,-480.0,0.00041095,30]
[381402483,1756187065840,-668.55,0.00041095,30]
[381402484,1756187065885,-862.79,0.00041095,30]
[381402485,1756187065930,-480.0,0.00041095,30]
[381402486,1756187065976,-480.0,0.00041095,30]
[381402487,1756187066021,-480.0,0.00041095,30]
[381402488,1756187066068,-1599.88,0.00041095,30]
[381402489,1756187066113,-481.02922992,0.00041095,30]
[381402490,1756187066157,-480.7654169,0.00041095,30]
[381402491,1756187066199,-480.0,0.00041095,30]
[381402492,1756187066242,-480.0,0.00041095,30]
[381402493,1756187066286,-480.0,0.00041095,30]
[381402494,1756187066331,-480.0,0.00041095,30]
[381402495,1756187066374,-480.0,0.00041095,30]
[381402496,1756187066417,-985.59,0.00041095,30]
[381402497,1756187066462,-619.57084227,0.00041095,30]
[381402498,1756187066506,-11624.77,0.00041095,30]
[381402499,1756187066548,-1409.81,0.00041095,30]
[381402500,1756187066593,-530.9,0.00041095,30]
[381402501,1756187066636,-480.0,0.00041095,30]
[381402502,1756187066678,-480.0,0.00041095,30]
[381402503,1756187066719,-480.6213824,0.00041095,30]
[381402504,1756187066759,-480.0,0.00041095,30]
[381402505,1756187066802,-481.00602413,0.00041095,30]
[381402506,1756187066847,-974.53,0.00041095,30]
[381402507,1756187066890,-480.0,0.00041095,30]
[381402508,1756187066932,-480.0,0.00041095,30]
[381402509,1756187066974,-480.0,0.00041095,30]
[381402510,1756187067015,-480.0,0.00041095,30]